fUSD/lending_fUSD_20250201
["ID","MTS","AMOUNT","RATE_DAILY","PERIOD"]
[351180324,1738398646045,-537.58059294,0.00017632,2]
[351180326,1738398646054,-271.57071408,0.00017632,2]
[351180328,1738398646064,-617.07504059,0.00017632,2]
[351180330,1738398646073,-500.0,0.00017632,2]
[351180331,1738398646083,-943.47,0.00017632,2]
[351180333,1738398646093,-1646.06,0.00017632,2]
[351180335,1738398646102,-500.0,0.00017632,2]
[351180337,1738398646111,-802.65,0.00017632,2]
[351180338,1738398646121,-1411.2,0.00017632,2]
[351180339,1738398646131,-500.0,0.00017632,2]
[351180341,1738398646140,-1489.78,0.00017632,2]
[351180343,1738398646149,-551.75651731,0.00017632,2]
[351180344,1738398646160,-1000.0,0.00017632,2]
[351180345,1738398646170,-1375.77,0.00017632,2]
[351180346,1738398646179,-500.0,0.00017632,2]
[351180347,1738398646189,-362.52,0.00017632,2]
[351180348,1738398646203,-2401.33,0.00017632,2]
[351180349,1738398646215,-500.0,0.00017632,2]
[351180350,1738398646225,-500.0,0.00017632,2]
[351180351,1738398646235,-1684.88,0.00017632,2]
[351180352,1738398646245,-526.79,0.00017632,2]
[351180353,1738398646255,-500.0,0.00017632,2]
[351180354,1738398646264,-500.0,0.00017632,2]
[351180355,1738398646274,-500.0,0.00017632,2]
[351180356,1738398646284,-492.32479718,0.00017632,2]
[351180357,1738398646294,-500.0,0.00017632,2]
[351180358,1738398646304,-500.0,0.00017632,2]
[351180359,1738398646313,-500.0,0.00017632,2]
[351180360,1738398646323,-501.34,0.00017632,2]
[351180361,1738398646332,-500.0,0.00017632,2]
[351180362,1738398646341,-500.0,0.00017632,2]
[351180363,1738398646350,-500.0,0.00017632,2]
[351180364,1738398646360,-548.31,0.00017632,2]
[351180365,1738398646370,-500.0,0.00017632,2]
[351180366,1738398646380,-221.16654323,0.00017632,2]
[351180367,1738398646390,-529.55655547,0.00017632,2]
[351180368,1738398646400,-365.90367403,0.00017632,2]
[351180369,1738398646410,-500.0,0.00017632,2]
[351180370,1738398646419,-602.83987692,0.00017632,2]
[351180371,1738398646429,-500.0,0.00017632,2]
[351180372,1738398646438,-500.0,0.00017632,2]
[351180373,1738398646448,-500.0,0.00017632,2]
[351180374,1738398646458,-500.0,0.00017633,2]
[351180375,1738398646467,-500.0,0.00017633,2]
[351180376,1738398646476,-500.0,0.00017633,2]
[351180377,1738398646487,-500.0,0.00017633,2]
[351180378,1738398646499,-500.0,0.00017633,2]
[351180379,1738398646510,-500.0,0.00017633,2]
[351180380,1738398646520,-538.77022756,0.00017633,2]
[351180381,1738398646529,-500.0,0.00017633,2]
[351180382,1738398646539,-500.0,0.00017633,2]
[351180383,1738398646548,-576.21,0.00017633,2]
[351180384,1738398646558,-500.0,0.00017633,2]
[351180385,1738398646567,-500.0,0.00017633,2]
[351180386,1738398646577,-500.0,0.00017633,2]
[351180387,1738398646586,-500.0,0.00017633,2]
[351180388,1738398646596,-500.0,0.00017633,2]
[351180389,1738398646605,-242.30866733,0.00017633,2]
[351180390,1738398646614,-500.0,0.00017633,2]
[351180391,1738398646624,-500.0,0.00017633,2]
[351180393,1738398646634,-500.0,0.00017633,2]
[351180395,1738398646643,-500.0,0.00017633,2]
[351180396,1738398646652,-742.69,0.00017633,2]
[351180397,1738398646661,-596.09,0.00017633,2]
[351180398,1738398646671,-500.0,0.00017633,2]
[351180399,1738398646680,-750.73,0.00017633,2]
[351180401,1738398646690,-500.0,0.00017633,2]
[351180403,1738398646699,-333.49599534,0.00017633,2]
[351180404,1738398646708,-500.0,0.00017633,2]
[351180405,1738398646717,-500.0,0.00017633,2]
[351180406,1738398646726,-700.95,0.00017633,2]
[351180407,1738398646735,-500.0,0.00017633,2]
[351180408,1738398646748,-500.0,0.00017633,2]
[351180409,1738398646757,-852.24,0.00017633,2]
[351180410,1738398646766,-595.92,0.00017633,2]
[351180411,1738398646775,-500.0,0.00017633,2]
[351180412,1738398646784,-732.43,0.00017633,2]
[351180413,1738398646793,-500.0,0.00017633,2]
[351180414,1738398646802,-500.0,0.00017633,2]
[351180415,1738398646812,-645.08,0.00017633,2]
[351180416,1738398646821,-1174.63,0.00017633,2]
[351180417,1738398646830,-500.0,0.00017633,2]
[351180418,1738398646839,-1130.53,0.00017633,2]
[351180419,1738398646849,-520.25289395,0.00017633,2]
[351180420,1738398646994,-1298.24,0.00017633,2]
[351180421,1738398647004,-500.0,0.00017633,2]
[351180422,1738398647013,-500.0,0.00017633,2]
[351180423,1738398647023,-500.0,0.00017633,2]
[351180424,1738398647032,-986.74,0.00017633,2]
[351180425,1738398647041,-500.0,0.00017633,2]
[351180426,1738398647050,-500.0,0.00017633,2]
[351180427,1738398647060,-871.54,0.00017633,2]
[351180428,1738398647069,-512.16,0.00017633,2]
[351180429,1738398647078,-10000.0,0.00017633,2]
[351180430,1738398647087,-10000.0,0.00017633,2]
[351180431,1738398647097,-10000.0,0.00017633,2]
[351180432,1738398647106,-201.303049,0.00017633,2]
[351180433,1738398647117,-201.303049,0.00017633,2]
[351180434,1738398647126,-151.0,0.00017633,2]
[351180435,1738398647135,-282.817203,0.00017633,2]
[351180436,1738398647145,-151.0,0.00017633,2]
[351180437,1738398647154,-311.297643,0.00017633,2]
[351180438,1738398647163,-311.297643,0.00017633,2]
[351180439,1738398647174,-151.0,0.00017633,2]
[351180440,1738398647183,-500.0,0.00017635,2]
[351180441,1738398647193,-500.0,0.00017635,2]
[351180442,1738398647205,-500.0,0.00017635,2]
[351180443,1738398647214,-500.0,0.00017635,2]
[351180444,1738398647224,-500.0,0.00017635,2]
[351180445,1738398647233,-500.0,0.00017635,2]
[351180446,1738398647245,-500.0,0.00017635,2]
[351180447,1738398647254,-500.0,0.00017635,2]
[351180448,1738398647263,-500.0,0.00017635,2]
[351180449,1738398647273,-500.0,0.00017635,2]
[351180450,1738398647282,-25987.48119881,0.00017636,2]
[351180451,1738398647293,-2895.0670017,0.0001764,2]
[351180452,1738398647303,-4015.4,0.00017668,2]
[351180453,1738398647312,-1653.21,0.00017668,2]
[351180454,1738398647321,-1709.83,0.00017668,2]
[351180455,1738398647331,-274.315719,0.00017668,2]
[351180456,1738398647340,-614.74,0.00017668,2]
[351180457,1738398647349,-500.0,0.00017668,2]
[351180458,1738398647359,-549.04,0.00017668,2]
[351180459,1738398647368,-987.7,0.00017668,2]
[351180460,1738398647377,-500.0,0.00017668,2]
[351180461,1738398647386,-1272.43,0.00017668,2]
[351180462,1738398647396,-1086.74,0.00017668,2]
[351180463,1738398647405,-2138.9,0.00017668,2]
[351180464,1738398647414,-307.037305,0.00017668,2]
[351180465,1738398647424,-896.09,0.00017668,2]
[351180466,1738398647433,-1705.67,0.00017668,2]
[351180467,1738398647443,-784.52,0.00017668,2]
[351180468,1738398647452,-1451.77,0.00017668,2]
[351180469,1738398647462,-1811.33,0.00017668,2]
[351180470,1738398647471,-994.06,0.00017668,2]
[351180471,1738398647480,-2262.59,0.00017668,2]
[351180472,1738398647490,-819.2,0.00017668,2]
[351180473,1738398647501,-2953.94,0.00017668,2]
[351180474,1738398647510,-626.66,0.00017668,2]
[351180475,1738398647520,-887.05,0.00017668,2]
[351180476,1738398647529,-1176.88,0.00017668,2]
[351180477,1738398647539,-151.0,0.00017668,2]
[351180478,1738398647548,-3124.58,0.00017668,2]
[351180479,1738398647557,-151.0,0.00017668,2]
[351180480,1738398647566,-283.828226,0.00017668,2]
[351180481,1738398647576,-954.56,0.00017668,2]
[351180482,1738398647585,-283.828226,0.00017668,2]
[351180483,1738398647595,-151.0,0.00017668,2]
[351180484,1738398647604,-151.0,0.00017668,2]
[351180485,1738398647614,-151.0,0.00017668,2]
[351180486,1738398647624,-200.497692,0.00017668,2]
[351180487,1738398647633,-200.497692,0.00017668,2]
[351180488,1738398647643,-151.0,0.00017668,2]
[351180489,1738398647652,-151.0,0.00017668,2]
[351180490,1738398647662,-849.82,0.00017668,2]
[351180491,1738398647672,-699.29,0.00017668,2]
[351180492,1738398647682,-902.67,0.00017668,2]
[351180493,1738398647691,-500.0,0.00017668,2]
[351180494,1738398647701,-959.51,0.00017668,2]
[351180495,1738398647710,-500.0,0.00017669,2]
[351180496,1738398647719,-775.89,0.00017669,2]
[351180497,1738398647728,-500.0,0.00017669,2]
[351180498,1738398647737,-500.0,0.00017669,2]
[351180499,1738398647748,-598.47,0.00017669,2]
[351180500,1738398647757,-610.2611966,0.00017669,2]
[351180501,1738398647767,-600.39,0.00017669,2]
[351180502,1738398647776,-500.0,0.00017669,2]
[351180503,1738398647786,-500.0,0.00017669,2]
[351180504,1738398647795,-578.45,0.00017669,2]
[351180505,1738398647804,-500.0,0.00017669,2]
[351180506,1738398647814,-500.0,0.00017669,2]
[351180507,1738398647824,-500.0,0.00017669,2]
[351180508,1738398647834,-657.49,0.00017669,2]
[351180509,1738398647844,-598.1,0.00017669,2]
[351180510,1738398647853,-174.37154498,0.00017669,2]
[351180511,1738398647863,-500.0,0.00017669,2]
[351180512,1738398647872,-398.29155364,0.00017669,2]
[351180513,1738398647882,-683.85,0.00017669,2]
[351180514,1738398647892,-500.0,0.00017669,2]
[351180515,1738398647901,-500.0,0.00017669,2]
[351180516,1738398647911,-500.0,0.00017669,2]
[351180517,1738398647921,-500.0,0.00017669,2]
[351180518,1738398647931,-500.0,0.00017669,2]
[351180519,1738398647940,-700.33,0.00017669,2]
[351180520,1738398647950,-500.0,0.00017669,2]
[351180521,1738398647959,-500.0,0.00017669,2]
[351180522,1738398647968,-500.0,0.00017669,2]
[351180523,1738398647978,-435.06288015,0.00017669,2]
[351180524,1738398647987,-500.0,0.00017669,2]
[351180525,1738398647998,-536.28,0.00017669,2]
[351180526,1738398648007,-500.0,0.00017669,2]
[351180527,1738398648017,-624.18,0.00017669,2]
[351180528,1738398648027,-500.0,0.00017669,2]
[351180529,1738398648036,-532.73,0.00017669,2]
[351180530,1738398648046,-500.0,0.00017669,2]
[351180531,1738398648056,-500.0,0.00017669,2]
[351180532,1738398648066,-592.32,0.00017669,2]
[351180533,1738398648076,-546.52,0.00017669,2]
[351180534,1738398648086,-602.52,0.00017669,2]
[351180535,1738398648097,-500.0,0.00017669,2]
[351180536,1738398648106,-829.13,0.00017669,2]
[351180537,1738398648116,-630.7,0.00017669,2]
[351180538,1738398648126,-836.4,0.00017669,2]
[351180539,1738398648135,-4112.16,0.00017669,2]
[351180540,1738398648145,-3113.85,0.00017669,2]
[351180541,1738398648155,-1051.07,0.00017669,2]
[351180542,1738398648168,-1027.72,0.00017669,2]
[351180543,1738398648178,-500.0,0.00017669,2]
[351180544,1738398648188,-858.87,0.00017669,2]
[351180545,1738398648201,-2560.42,0.00017669,2]
[351180546,1738398648211,-2582.9,0.00017669,2]
[351180547,1738398648220,-2080.3,0.00017669,2]
[351180548,1738398648230,-897.59,0.00017669,2]
[351180549,1738398648239,-500.0,0.00017669,2]
[351180550,1738398648251,-2577.23,0.00017669,2]
[351180551,1738398648261,-1119.79,0.00017669,2]
[351180552,1738398648271,-1989.92,0.00017669,2]
[351180553,1738398648281,-500.0,0.00017669,2]
[351180554,1738398648291,-2325.91,0.00017669,2]
[351180555,1738398648301,-1928.93,0.00017669,2]
[351180556,1738398648311,-500.0,0.00017669,2]
[351180557,1738398648320,-500.0,0.00017669,2]
[351180558,1738398648330,-500.0,0.00017669,2]
[351180559,1738398648341,-199.54994541,0.00017669,2]
[351180560,1738398648352,-1910.6,0.00017669,2]
[351180561,1738398648361,-2211.27,0.00017669,2]
[351180562,1738398648371,-745.36,0.00017669,2]
[351180563,1738398648381,-500.0,0.00017669,2]
[351180564,1738398648391,-811.04,0.00017669,2]
[351180565,1738398648401,-1133.21,0.00017669,2]
[351180566,1738398648411,-500.0,0.00017669,2]
[351180567,1738398648422,-863.87,0.00017669,2]
[351180568,1738398648432,-500.0,0.00017669,2]
[351180569,1738398648442,-747.21,0.00017669,2]
[351180570,1738398648452,-500.0,0.00017669,2]
[351180571,1738398648462,-1076.65,0.00017669,2]
[351180572,1738398648473,-608.71,0.00017669,2]
[351180573,1738398648483,-559.04,0.00017669,2]
[351180574,1738398648495,-500.0,0.00017669,2]
[351180575,1738398648505,-500.0,0.00017669,2]
[351180576,1738398648516,-500.0,0.00017669,2]
[351180577,1738398648526,-500.0,0.00017669,2]
[351180578,1738398648536,-988.91,0.00017669,2]
[351180579,1738398648546,-561.64,0.00017669,2]
[351180580,1738398648557,-500.0,0.00017669,2]
[351180581,1738398648566,-500.0,0.00017669,2]
[351180582,1738398648577,-500.0,0.00017669,2]
[351180583,1738398648587,-835.58,0.00017669,2]
[351180584,1738398648597,-589.68,0.00017669,2]
[351180585,1738398648608,-559.71,0.00017669,2]
[351180586,1738398648618,-500.0,0.00017669,2]
[351180587,1738398648628,-500.0,0.00017669,2]
[351180588,1738398648637,-1260.07,0.00017669,2]
[351180589,1738398648647,-500.0,0.00017669,2]
[351180590,1738398648657,-500.0,0.00017669,2]
[351180591,1738398648667,-500.0,0.00017669,2]
[351180592,1738398648677,-661.6,0.00017669,2]
[351180593,1738398648688,-500.0,0.00017669,2]
[351180594,1738398648697,-2495.83,0.00017669,2]
[351180595,1738398648707,-270.97667289,0.00017669,2]
[351180596,1738398648717,-188.50800187,0.00017669,2]
[351180597,1738398648727,-6735.46,0.00017669,2]
[351180598,1738398648736,-166.69566842,0.00017669,2]
[351180599,1738398648748,-500.0,0.00017669,2]
[351180600,1738398648758,-158.4177411,0.00017669,2]
[351180601,1738398648768,-1532.76,0.00017669,2]
[351180602,1738398648778,-500.0,0.00017669,2]
[351180603,1738398648787,-500.0,0.00017669,2]
[351180604,1738398648797,-500.0,0.00017669,2]
[351180605,1738398648806,-2489.94,0.00017669,2]
[351180606,1738398648815,-500.0,0.00017669,2]
[351180607,1738398648825,-500.0,0.00017669,2]
[351180608,1738398648835,-1046.84,0.00017671,2]
[351180609,1738398648844,-1094.09,0.00017671,2]
[351180610,1738398648853,-877.61,0.00017671,2]
[351180611,1738398648863,-2432.34,0.00017671,2]
[351180612,1738398648872,-1065.07,0.00017671,2]
[351180613,1738398648881,-2236.47,0.00017671,2]
[351180614,1738398648891,-1459.32,0.00017671,2]
[351180615,1738398648900,-1800.11,0.00017671,2]
[351180616,1738398648909,-500.0,0.00017671,2]
[351180617,1738398648919,-1210.44,0.00017671,2]
[351180618,1738398648928,-500.0,0.00017671,2]
[351180619,1738398648937,-858.91,0.00017671,2]
[351180620,1738398648946,-2265.53,0.00017671,2]
[351180621,1738398648956,-2318.7,0.00017671,2]
[351180622,1738398648965,-1620.71,0.00017671,2]
[351180623,1738398648975,-1440.72,0.00017671,2]
[351180624,1738398648984,-500.0,0.00017671,2]
[351180625,1738398648995,-3774.03,0.00017671,2]
[351180626,1738398649004,-1010.29,0.00017671,2]
[351180627,1738398649013,-537.93,0.00017671,2]
[351180628,1738398649022,-533.04,0.00017671,2]
[351180629,1738398649032,-2131.22,0.00017671,2]
[351180630,1738398649041,-376.87670947,0.00017671,2]
[351180631,1738398649050,-1729.3,0.00017671,2]
[351180632,1738398649059,-500.0,0.00017671,2]
[351180633,1738398649068,-1525.92,0.00017671,2]
[351180634,1738398649078,-765.42,0.00017671,2]
[351180635,1738398649087,-1031.62,0.00017671,2]
[351180636,1738398649097,-156.70719273,0.00017681,2]
[351180637,1738398649107,-1363.95177615,0.00017693,2]
[351180638,1738398649116,-150.0,0.00017697,2]
[351180639,1738398649125,-382.10591967,0.00017699,2]
[351180640,1738398649135,-4190.74,0.000177,2]
[351180641,1738398649144,-177.43139934,0.00017701,2]
[351180642,1738398649154,-150.0,0.00017703,2]
[351180643,1738398649163,-150.0,0.00017703,2]
[351180644,1738398649172,-150.0,0.00017704,2]
[351180645,1738398649181,-1000.0,0.00017713,2]
[351180646,1738398649191,-150.0,0.00017714,2]
[351180647,1738398649203,-162.0,0.00017714,2]
[351180648,1738398649213,-13679.1548847,0.00017716,2]
[351180649,1738398649222,-206.0,0.0001772,2]
[351180650,1738398649231,-1025.61,0.00017726,2]
[351180651,1738398649240,-1025.61,0.00017726,2]
[351180652,1738398649250,-1025.61,0.00017726,2]
[351180653,1738398649260,-1025.61,0.00017726,2]
[351180654,1738398649270,-1025.61,0.00017726,2]
[351180655,1738398649280,-1025.61,0.00017726,2]
[351180656,1738398649290,-1025.61,0.00017726,2]
[351180657,1738398649300,-1025.61,0.00017726,2]
[351180658,1738398649310,-1025.61,0.00017726,2]
[351180659,1738398649319,-1025.61,0.00017726,2]
[351180660,1738398649329,-1025.61,0.00017726,2]
[351180661,1738398649338,-1025.61,0.00017726,2]
[351180662,1738398649348,-1025.61,0.00017726,2]
[351180663,1738398649358,-1025.61,0.00017726,2]
[351180664,1738398649368,-1025.61,0.00017726,2]
[351180665,1738398649378,-1025.61,0.00017726,2]
[351180666,1738398649388,-1025.61,0.00017726,2]
[351180667,1738398649399,-1025.61,0.00017726,2]
[351180668,1738398649408,-1025.61,0.00017726,2]
[351180669,1738398649418,-1025.61,0.00017726,2]
[351180670,1738398649428,-1025.61,0.00017726,2]
[351180671,1738398649438,-1025.61,0.00017726,2]
[351180672,1738398649447,-1025.61,0.00017726,2]
[351180673,1738398649457,-1025.68281108,0.00017726,2]
[351180674,1738398649468,-2859.437,0.00017728,2]
[351180675,1738398649477,-160115.6703767,0.0001773,7]
[351180676,1738398649486,-151.0,0.0001773,2]
[351180677,1738398649495,-151.0,0.0001773,2]
[351180678,1738398649504,-151.0,0.0001773,2]
[351180679,1738398649514,-151.0,0.0001773,2]
[351180680,1738398649523,-151.0,0.0001773,2]
[351180681,1738398649532,-151.0,0.0001773,2]
[351180682,1738398649542,-10000.0,0.0001773,2]
[351180683,1738398649551,-10000.0,0.0001773,2]
[351180684,1738398649560,-10000.0,0.0001773,2]
[351180685,1738398649569,-201.303049,0.0001773,2]
[351180686,1738398649579,-201.303049,0.0001773,2]
[351180687,1738398649588,-151.0,0.0001773,2]
[351180688,1738398649597,-151.0,0.0001773,2]
[351180689,1738398649606,-151.0,0.0001773,2]
[351180690,1738398649616,-151.0,0.0001773,2]
[351180691,1738398649625,-283.828226,0.0001773,2]
[351180692,1738398649634,-283.828226,0.0001773,2]
[351180693,1738398649644,-151.0,0.0001773,2]
[351180694,1738398649653,-151.0,0.0001773,2]
[351180695,1738398649662,-151.0,0.0001773,2]
[351180696,1738398649672,-200.497692,0.0001773,2]
[351180697,1738398649681,-311.297643,0.0001773,2]
[351180698,1738398649690,-200.497692,0.0001773,2]
[351180699,1738398649699,-311.297643,0.0001773,2]
[351180700,1738398649709,-151.0,0.0001773,2]
[351180701,1738398649718,-151.0,0.0001773,2]
[351180702,1738398649727,-151.0,0.0001773,2]
[351180703,1738398649736,-150.0,0.00017732,2]
[351180704,1738398649745,-150.0,0.00017745,2]
[351180705,1738398649754,-150.0,0.0001775,2]
[351180706,1738398649896,-150.0,0.00017763,2]
[351180707,1738398649905,-150.0,0.00017768,2]
[351180708,1738398649914,-500.0,0.00017769,2]
[351180709,1738398649924,-500.0,0.00017769,2]
[351180710,1738398649933,-500.0,0.00017769,2]
[351180711,1738398649942,-500.0,0.00017769,2]
[351180712,1738398649954,-500.0,0.00017769,2]
[351180713,1738398649963,-200.0,0.00017769,2]
[351180714,1738398649973,-500.0,0.00017769,2]
[351180715,1738398649982,-500.0,0.00017769,2]
[351180716,1738398649991,-500.0,0.00017769,2]
[351180717,1738398650001,-500.0,0.00017769,2]
[351180718,1738398650011,-500.0,0.00017769,2]
[351180719,1738398650020,-500.0,0.00017769,2]
[351180720,1738398650029,-500.0,0.00017769,2]
[351180721,1738398650038,-500.0,0.00017769,2]
[351180722,1738398650047,-500.0,0.00017769,2]
[351180723,1738398650056,-500.0,0.00017769,2]
[351180724,1738398650066,-500.0,0.00017769,2]
[351180725,1738398650076,-500.0,0.00017769,2]
[351180726,1738398650084,-500.0,0.00017769,2]
[351180727,1738398650094,-500.0,0.00017769,2]
[351180728,1738398650104,-500.0,0.00017769,2]
[351180729,1738398650116,-500.0,0.00017769,2]
[351180730,1738398650125,-500.0,0.00017769,2]
[351180731,1738398650134,-219.94432217,0.00017769,2]
[351180732,1738398650144,-500.0,0.00017769,2]
[351180733,1738398650154,-500.0,0.00017769,2]
[351180734,1738398650163,-193.0010318,0.00017769,2]
[351180735,1738398650172,-529.7934492,0.00017769,2]
[351180736,1738398650182,-153.53727036,0.00017769,2]
[351180737,1738398650191,-500.0,0.00017769,2]
[351180738,1738398650205,-541.06079609,0.00017769,2]
[351180739,1738398650215,-500.0,0.00017769,2]
[351180740,1738398650224,-500.0,0.00017769,2]
[351180741,1738398650234,-500.0,0.00017769,2]
[351180742,1738398650244,-500.0,0.00017769,2]
[351180743,1738398650254,-609.44664529,0.00017769,2]
[351180744,1738398650263,-500.0,0.00017769,2]
[351180745,1738398650273,-500.0,0.00017769,2]
[351180746,1738398650284,-500.0,0.00017769,2]
[351180747,1738398650293,-1061.2,0.00017769,2]
[351180748,1738398650303,-500.0,0.00017769,2]
[351180749,1738398650312,-500.0,0.00017769,2]
[351180750,1738398650322,-500.0,0.00017769,2]
[351180751,1738398650332,-500.0,0.00017769,2]
[351180752,1738398650342,-500.0,0.00017769,2]
[351180753,1738398650352,-500.0,0.00017769,2]
[351180754,1738398650362,-500.0,0.00017769,2]
[351180755,1738398650372,-500.0,0.00017769,2]
[351180756,1738398650382,-500.0,0.00017769,2]
[351180757,1738398650391,-432.13001069,0.00017769,2]
[351180758,1738398650401,-500.0,0.00017769,2]
[351180759,1738398650411,-500.0,0.00017769,2]
[351180760,1738398650421,-500.0,0.00017769,2]
[351180761,1738398650430,-500.0,0.00017769,2]
[351180762,1738398650440,-500.0,0.00017769,2]
[351180763,1738398650449,-263.10241469,0.00017769,2]
[351180764,1738398650459,-500.0,0.00017769,2]
[351180765,1738398650468,-500.0,0.00017769,2]
[351180766,1738398650478,-500.0,0.00017769,2]
[351180767,1738398650488,-500.0,0.00017769,2]
[351180768,1738398650498,-943.47,0.00017769,2]
[351180769,1738398650508,-1646.06,0.00017769,2]
[351180770,1738398650519,-500.0,0.00017769,2]
[351180771,1738398650528,-802.65,0.00017769,2]
[351180772,1738398650539,-1411.2,0.00017769,2]
[351180773,1738398650548,-500.0,0.00017769,2]
[351180774,1738398650557,-1489.78,0.00017769,2]
[351180775,1738398650567,-1000.0,0.00017769,2]
[351180776,1738398650578,-1375.77,0.00017769,2]
[351180777,1738398650593,-500.0,0.00017769,2]
[351180778,1738398650602,-362.52,0.00017769,2]
[351180779,1738398650612,-2401.33,0.00017769,2]
[351180780,1738398650622,-500.0,0.00017769,2]
[351180781,1738398650632,-500.0,0.00017769,2]
[351180782,1738398650642,-1684.88,0.00017769,2]
[351180783,1738398650652,-526.79,0.00017769,2]
[351180784,1738398650663,-500.0,0.00017769,2]
[351180785,1738398650672,-187.57574087,0.00017769,2]
[351180786,1738398650683,-500.0,0.00017769,2]
[351180787,1738398650692,-500.0,0.00017769,2]
[351180788,1738398650702,-500.0,0.00017769,2]
[351180789,1738398650711,-500.0,0.00017769,2]
[351180790,1738398650721,-501.34,0.00017769,2]
[351180791,1738398650730,-383.77934829,0.00017769,2]
[351180792,1738398650740,-500.0,0.00017769,2]
[351180793,1738398650751,-500.0,0.00017769,2]
[351180794,1738398650760,-548.31,0.00017769,2]
[351180795,1738398650770,-500.0,0.00017769,2]
[351180796,1738398650780,-500.0,0.00017769,2]
[351180797,1738398650790,-500.0,0.00017769,2]
[351180798,1738398650799,-500.0,0.00017769,2]
[351180799,1738398650808,-355.27326744,0.00017769,2]
[351180800,1738398650817,-500.0,0.0001777,2]
[351180801,1738398650826,-500.0,0.0001777,2]
[351180802,1738398650835,-500.0,0.0001777,2]
[351180803,1738398650845,-500.0,0.0001777,2]
[351180804,1738398650854,-500.0,0.0001777,2]
[351180805,1738398650863,-500.0,0.0001777,2]
[351180806,1738398650873,-500.0,0.0001777,2]
[351180807,1738398650882,-500.0,0.0001777,2]
[351180808,1738398650891,-576.21,0.0001777,2]
[351180809,1738398650900,-500.0,0.0001777,2]
[351180810,1738398650910,-500.0,0.0001777,2]
[351180811,1738398650918,-500.0,0.0001777,2]
[351180812,1738398650928,-500.0,0.0001777,2]
[351180813,1738398650937,-500.0,0.0001777,2]
[351180814,1738398650946,-500.0,0.0001777,2]
[351180815,1738398650955,-500.0,0.0001777,2]
[351180816,1738398650965,-500.0,0.0001777,2]
[351180817,1738398650974,-500.0,0.0001777,2]
[351180818,1738398650983,-742.69,0.0001777,2]
[351180819,1738398650992,-596.09,0.0001777,2]
[351180820,1738398651002,-500.0,0.0001777,2]
[351180821,1738398651011,-750.73,0.0001777,2]
[351180822,1738398651020,-500.0,0.0001777,2]
[351180823,1738398651029,-586.4085383,0.0001777,2]
[351180824,1738398651038,-500.0,0.0001777,2]
[351180825,1738398651047,-700.95,0.0001777,2]
[351180826,1738398651056,-500.0,0.0001777,2]
[351180827,1738398651066,-500.0,0.0001777,2]
[351180828,1738398651075,-852.24,0.0001777,2]
[351180829,1738398651085,-595.92,0.0001777,2]
[351180830,1738398651094,-500.0,0.0001777,2]
[351180831,1738398651103,-732.43,0.0001777,2]
[351180832,1738398651112,-500.0,0.0001777,2]
[351180833,1738398651122,-500.0,0.0001777,2]
[351180834,1738398651132,-645.08,0.0001777,2]
[351180835,1738398651140,-1174.63,0.0001777,2]